bitfinex/quotes_SOLUSD_20230101
["timestamp","ask_amount","ask_price","bid_price","bid_amount"]
[1672592402850,69.76683961,9.8865,9.8781,23.46510607]
[1672592403183,262.2,9.899,9.8781,23.46510607]
[1672592403184,942.13459038,9.8884,9.8782,76.0]
[1672592403592,942.13459038,9.8884,9.8779,40.0]
[1672592403927,942.13459038,9.8884,9.878,96.01]
[1672592404109,942.13459038,9.8884,9.8781,40.0]
[1672592404322,942.13459038,9.8884,9.8782,76.0]
[1672592404529,942.13459038,9.8884,9.8783,40.0]
[1672592404743,942.13459038,9.8884,9.8784,76.0]
[1672592404967,942.13459038,9.8884,9.8785,40.0]
[1672592405279,942.13459038,9.8884,9.8786,76.0]
[1672592405496,942.13459038,9.8884,9.8787,40.0]
[1672592405712,942.13459038,9.8884,9.8788,76.0]
[1672592405911,942.13459038,9.8884,9.8789,40.0]
[1672592406240,942.13459038,9.8884,9.879,76.0]
[1672592406454,942.13459038,9.8884,9.8791,40.0]
[1672592406663,942.13459038,9.8884,9.8792,76.0]
[1672592406856,942.13459038,9.8884,9.8793,40.0]
[1672592407064,942.13459038,9.8884,9.8794,75.99]
[1672592407277,23.77535273,9.8883,9.8795,40.0]
[1672592407495,23.77535273,9.8883,9.8797,40.0]
[1672592407699,23.77535273,9.8883,9.8798,75.99]
[1672592407906,942.13459038,9.8884,9.8798,75.99]
[1672592408242,942.13459038,9.8884,9.8799,40.0]
[1672592408555,942.13459038,9.8884,9.8801,40.0]
[1672592408764,942.13459038,9.8884,9.8803,40.0]
[1672592409079,942.13459038,9.8884,9.8805,40.0]
[1672592409283,136.4032,9.8903,9.8806,75.99]
[1672592409479,117.8947,9.8902,9.8807,40.0]
[1672592409691,117.8947,9.8902,9.8808,75.98]
[1672592409917,117.8947,9.8902,9.8809,40.0]
[1672592410114,117.8947,9.8902,9.8811,40.0]
[1672592410327,75.87,9.8957,9.8813,303.9]
[1672592410542,996.0277964,9.8958,9.8816,40.0]
[1672592410751,996.0277964,9.8958,9.8819,40.0]
[1672592410957,1032.1539622,9.8992,9.8821,303.9]
[1672592411166,117.8947,9.8991,9.8823,303.9]
[1672592411384,75.84,9.899,9.8825,343.9]
[1672592411580,117.8947,9.8991,9.8828,40.0]
[1672592411793,118.1937,9.8989,9.883,303.9]
[1672592412011,118.1937,9.8989,9.8832,343.9]
[1672592412228,118.1937,9.8989,9.8834,303.9]
[1672592412433,118.1937,9.8988,9.8836,303.9]
[1672592412647,74.90121364,9.9104,9.8839,40.0]
[1672592412848,641.63753309,9.9363,9.8839,40.0]
[1672592412849,75.76,9.9103,9.9035,75.13088957]
[1672592413055,454.78035939,9.9377,9.9124,185.02626043]
[1672592413268,75.69,9.9194,9.9022,244.2419808]
[1672592413488,40.0,9.9217,9.9024,163.98294624]
[1672592413699,35.6173957,9.9193,9.904,262.2]
[1672592413897,75.69,9.9192,9.904,425.04758002]
[1672592414112,75.69,9.9192,9.9075,168.26259242]
[1672592414321,35.6173957,9.9191,9.9079,167.72158811]
[1672592414530,75.69,9.919,9.9081,163.75762115]
[1672592414745,75.69,9.919,9.9161,74.36635336]
[1672592415382,75.69,9.919,9.9167,74.36635336]
[1672592415589,20.0,9.9189,9.9167,74.36635336]
[1672592415912,75.69,9.9188,9.9166,74.36635336]
[1672592416123,20.0,9.9187,9.9171,74.36635336]
[1672592416436,91.49730786,9.9186,9.9171,74.36635336]
[1672592416641,40.0,9.9353,9.9255,173.63376034]
[1672592416857,6.83309,9.9351,9.9256,40.0]
[1672592417065,40.0,9.935,9.9208,73.48259355]
[1672592417380,6.83309,9.9336,9.9042,40.0]
[1672592417594,6.83309,9.9336,9.9044,40.0]
[1672592417804,303.9,9.9334,9.9045,75.8]
[1672592418001,6.83309,9.9322,9.9046,40.0]
[1672592418211,6.83309,9.9322,9.9047,75.8]
[1672592418424,40.0,9.9319,9.9048,40.0]
[1672592418740,310.73309,9.9317,9.9049,75.8]
[1672592419065,40.0,9.9314,9.905,40.0]
[1672592419273,6.83309,9.9312,9.9051,75.8]
[1672592419485,40.0,9.931,9.9052,40.0]
[1672592419684,20.0,9.9311,9.9249,40.0]
[1672592419685,71.99142885,9.9309,9.9249,40.0]
[1672592419888,334.57607939,9.9309,9.9249,40.0]
[1672592420210,303.9,9.9307,9.9212,40.0]
[1672592420419,106.27607939,9.9308,9.9179,40.0]
[1672592420420,303.9,9.9305,9.9179,40.0]
[1672592420737,40.0,9.9302,9.9179,40.0]
[1672592420939,303.9,9.93,9.9179,40.0]
[1672592421144,303.9,9.9298,9.9138,73.64547268]
[1672592421359,115.61,9.9299,9.9104,75.76]
[1672592421360,40.0,9.9295,9.9154,13.65499602]
[1672592421585,303.9,9.9293,9.9135,73.64547268]
[1672592421782,303.9,9.9291,9.9135,73.64547268]
[1672592421991,40.0,9.9288,9.9136,53.65747536]
[1672592422202,303.9,9.9286,9.9139,73.64547268]
[1672592422421,40.0,9.9283,9.9101,294.58189074]
[1672592422638,303.9,9.9281,9.9077,161.85453023]
[1672592422849,303.9,9.9279,9.9077,161.85453023]
[1672592423054,40.0,9.9276,9.9077,161.85453023]
[1672592423252,40.0,9.9273,9.9077,161.85453023]
[1672592423470,303.9,9.9271,9.9077,161.85453023]
[1672592423793,40.0,9.9268,9.9077,161.85453023]
[1672592423995,40.0,9.9268,9.9073,40.0]
[1672592423996,303.9,9.9266,9.9073,40.0]
[1672592424197,303.9,9.9264,9.9073,40.0]
[1672592424408,40.0,9.9261,9.9073,40.0]
[1672592424623,303.9,9.9259,9.9073,40.0]
[1672592424834,40.0,9.9256,9.9073,40.0]
[1672592425044,40.0,9.9253,9.9066,40.0]
[1672592425258,303.9,9.9251,9.9067,75.79]
[1672592425473,303.9,9.9249,9.9068,40.0]
[1672592425673,303.9,9.9247,9.9068,40.0]
[1672592425878,95.65,9.9248,9.9068,40.0]
[1672592425879,303.9,9.9245,9.9068,40.0]
[1672592426094,40.0,9.9242,9.9067,75.79]
[1672592426418,40.0,9.9239,9.9066,40.0]
[1672592426629,303.9,9.9237,9.9067,75.79]
[1672592426843,303.9,9.9235,9.9068,40.0]
[1672592427050,40.0,9.9232,9.9068,40.0]
[1672592427260,303.9,9.923,9.9068,40.0]
[1672592427474,303.9,9.9228,9.9069,75.78]
[1672592427665,303.9,9.9226,9.9064,40.0]
[1672592427873,303.9,9.9224,9.9065,75.79]
[1672592428102,40.0,9.9221,9.9065,75.79]
[1672592428412,40.0,9.9218,9.9065,75.79]
[1672592428643,40.0,9.9215,9.9063,75.79]
[1672592428847,303.9,9.9213,9.9063,75.79]
[1672592429064,40.0,9.921,9.9062,40.0]
[1672592429261,40.0,9.9207,9.9064,40.0]
[1672592429602,303.9,9.9205,9.9065,75.79]
[1672592429905,40.0,9.9202,9.9061,75.79]
[1672592430121,399.58,9.9201,9.9061,75.79]
[1672592430309,40.0,9.92,9.9061,75.79]
[1672592430520,95.68,9.9199,9.9061,75.79]
[1672592430735,40.0,9.9198,9.9061,75.79]
[1672592430947,95.69,9.9197,9.9034,75.81]
[1672592431270,40.0,9.9196,9.9035,55.16849649]
[1672592431482,95.69,9.9195,9.9036,90.97834332]
[1672592431678,40.0,9.9194,9.9038,40.0]
[1672592431888,40.0,9.9192,9.904,40.0]
[1672592432104,75.69,9.9191,9.9041,90.97757755]
[1672592432304,40.0,9.9189,9.9043,40.0]
[1672592432511,95.69,9.9188,9.9044,90.96711813]
[1672592432722,40.0,9.9187,9.9046,40.0]
[1672592432940,95.69,9.9186,9.9047,75.8]
[1672592433150,343.9,9.9185,9.9037,40.0]
[1672592433376,40.0,9.9182,9.9039,40.0]
[1672592433579,303.9,9.918,9.904,90.9777307]
[1672592433796,40.0,9.9177,9.9041,15.16757755]
[1672592434007,303.9,9.9175,9.9042,75.8]
[1672592434320,135.7,9.9174,9.9043,55.16727127]
[1672592434529,196.90968646,9.9174,9.9044,90.96711813]
[1672592434860,135.7,9.9174,9.9045,40.0]
[1672592435057,135.7,9.9174,9.9047,40.0]
[1672592435250,135.7,9.9174,9.9048,75.8]
[1672592435577,196.90968646,9.9174,9.9048,75.8]
[1672592435773,196.90968646,9.9174,9.9047,40.0]
[1672592435983,196.90968646,9.9174,9.9048,75.8]
[1672592436311,196.90968646,9.9174,9.9049,40.0]
[1672592436642,196.90968646,9.9174,9.905,75.8]
[1672592436833,196.90968646,9.9174,9.9048,75.8]
[1672592437154,196.90968646,9.9174,9.9044,186.835]
[1672592437893,255.58857029,9.9174,9.9044,186.835]
[1672592439254,255.58857029,9.9174,9.9046,73.64547268]
[1672592439455,255.58857029,9.9174,9.9047,75.8]
[1672592439669,255.58857029,9.9174,9.9048,40.0]
[1672592439893,255.58857029,9.9174,9.905,40.0]
[1672592440088,255.58857029,9.9174,9.9051,75.8]
[1672592441140,255.58857029,9.9174,9.9056,73.64547268]
[1672592442087,303.9,9.9173,9.9056,73.64547268]
[1672592442301,303.9,9.9171,9.9056,73.64547268]
[1672592442507,303.9,9.9169,9.9056,73.64547268]
[1672592442831,40.0,9.9166,9.9056,73.64547268]
[1672592443044,303.9,9.9164,9.9059,73.64547268]
[1672592443232,343.9,9.9162,9.9071,73.64547268]
[1672592443569,40.0,9.9159,9.9071,73.64547268]
[1672592443786,303.9,9.9157,9.9071,73.64547268]
[1672592443977,40.0,9.9154,9.9071,73.64547268]
[1672592444185,399.62,9.9153,9.9071,73.64547268]
[1672592444420,40.0,9.9152,9.9071,73.64547268]
[1672592444633,303.9,9.915,9.9057,73.64547268]
[1672592444825,303.9,9.9148,9.9056,73.64547268]
[1672592445039,40.0,9.9145,9.9056,73.64547268]
[1672592445249,303.9,9.9143,9.9056,73.64547268]
[1672592445458,40.0,9.9141,9.9056,73.64547268]
[1672592445777,40.0,9.9139,9.9056,73.64547268]
[1672592445995,40.0,9.9137,9.9056,73.64547268]
[1672592446199,95.73,9.9136,9.9056,73.64547268]
[1672592446418,20.0,9.9136,9.9056,73.64547268]
[1672592446629,20.0,9.9136,9.9058,73.64547268]
[1672592446940,40.0,9.9135,9.9058,73.64547268]
[1672592447128,40.0,9.9133,9.9058,73.64547268]
[1672592447346,75.73,9.9134,9.9133,11.48560918]
[1672592447861,115.73,9.9135,9.9133,11.48560918]
[1672592448076,40.0,9.9135,9.9133,11.48560918]
[1672592448293,343.9,9.9135,9.9133,11.48560918]
[1672592448503,75.73,9.9134,9.9133,11.48560918]
[1672592448931,379.63,9.9134,9.9133,11.48560918]
[1672592449341,399.63,9.9134,9.9133,11.48560918]
[1672592449777,323.9,9.9134,9.9133,11.48560918]
[1672592449996,20.0,9.9134,9.9133,11.48560918]
[1672592476295,20.0,9.9134,9.9133,0.00560918]
[1672592476715,445.22825139,9.9134,9.9133,0.00560918]
[1672592490693,497.21202879,9.9134,9.9133,0.00560918]
[1672592490900,572.94202879,9.9134,9.9133,0.00560918]
[1672592492287,497.21202879,9.9134,9.9133,0.00560918]
[1672592501013,40.0,9.9133,9.9082,111.8931]
[1672592501324,343.9,9.9131,9.9082,111.8931]
[1672592501515,40.0,9.9129,9.9082,111.8931]
[1672592501722,40.0,9.9127,9.9082,111.8931]
[1672592501940,20.0,9.9126,9.9082,111.8931]
[1672592502159,343.9,9.9125,9.9082,111.8931]
[1672592502360,40.0,9.9123,9.9082,111.8931]
[1672592502578,343.9,9.9123,9.9082,111.8931]
[1672592502905,40.0,9.912,9.9082,111.8931]
[1672592503323,303.9,9.9118,9.9082,111.8931]
[1672592503519,40.0,9.9117,9.9077,0.0044]
[1672592503731,40.0,9.9115,9.9034,75.81]
[1672592504276,343.9,9.9113,9.9034,75.81]
[1672592504681,40.0,9.911,9.8996,75.84]
[1672592505110,40.0,9.9107,9.8996,75.84]
[1672592505315,40.0,9.9107,9.8995,75.84]
[1672592505536,425.22825139,9.9106,9.8925,40.0]
[1672592505746,40.0,9.9105,9.8926,95.89]
[1672592505942,161.32825139,9.9105,9.8927,40.0]
[1672592506153,55.90175635,9.9104,9.8928,75.89]
[1672592506361,40.0,9.9103,9.8929,60.0]
[1672592506582,105.42649504,9.9103,9.8931,40.0]
[1672592506895,40.0,9.9101,9.8933,40.0]
[1672592507109,40.0,9.9101,9.8935,40.0]
[1672592507307,121.32825139,9.91,9.8936,2555.49982901]
[1672592507527,40.0,9.9099,9.8937,40.0]
[1672592507740,161.32825139,9.9099,9.8939,40.0]
[1672592507955,40.0,9.9097,9.894,95.88]
[1672592508275,121.32825139,9.9096,9.8941,40.0]
[1672592508588,40.0,9.9097,9.8941,40.0]
[1672592508589,161.32825139,9.9095,9.8943,40.0]
[1672592508895,121.32825139,9.9094,9.8945,40.0]
[1672592509110,40.0,9.9093,9.8947,40.0]
[1672592509318,105.42649504,9.9093,9.8948,95.88]
[1672592509509,40.0,9.9091,9.8949,40.0]
[1672592509721,40.0,9.9091,9.8951,40.0]
[1672592509928,105.42649504,9.9091,9.8952,2555.08212348]
[1672592510152,161.32825139,9.9091,9.8953,2499.18727115]
[1672592510351,161.32825139,9.9091,9.8955,40.0]
[1672592510564,161.32825139,9.9091,9.8956,95.87]
[1672592510781,161.32825139,9.9091,9.8957,40.0]
[1672592510980,161.32825139,9.9091,9.8959,40.0]
[1672592511195,161.32825139,9.9091,9.896,75.87]
[1672592511407,161.32825139,9.9091,9.8961,60.0]
[1672592511623,161.32825139,9.9091,9.8963,40.0]
[1672592511827,161.32825139,9.9091,9.8964,95.86]
[1672592512039,40.0,9.9095,9.8964,95.86]
[1672592512040,303.9,9.9138,9.8964,95.86]
[1672592512248,20.0,9.9124,9.8965,174.96490786]
[1672592512460,20.0,9.9124,9.8967,40.0]
[1672592512673,20.0,9.9127,9.8969,40.0]
[1672592512888,20.0,9.9127,9.897,255.0176]
[1672592513098,20.0,9.9127,9.8971,40.0]
[1672592513293,20.0,9.9127,9.8973,40.0]
[1672592513503,20.0,9.9127,9.8974,95.86]
[1672592513719,20.0,9.9127,9.8975,40.0]
[1672592513930,20.0,9.9127,9.8976,95.85]
[1672592514139,20.0,9.9127,9.8977,40.0]
[1672592514367,40.0,9.9126,9.8979,40.0]
[1672592514569,20.0,9.9125,9.8981,40.0]
[1672592514790,20.0,9.9125,9.8982,75.85]
[1672592515011,20.0,9.9125,9.8983,40.0]
[1672592515221,20.0,9.9125,9.8985,40.0]
[1672592515410,20.0,9.9125,9.8986,75.85]
[1672592515743,20.0,9.9125,9.8987,40.0]
[1672592515962,20.0,9.9127,9.8989,40.0]
[1672592516159,20.0,9.9134,9.899,75.84]
[1672592516369,20.0,9.9134,9.8991,40.0]
[1672592516587,20.0,9.9134,9.8993,40.0]
[1672592516912,20.0,9.9134,9.8995,40.0]
[1672592517218,20.0,9.9134,9.8997,40.0]
[1672592517410,20.0,9.9134,9.8998,75.84]
[1672592517621,20.0,9.9134,9.8999,40.0]
[1672592517830,20.0,9.9134,9.9001,40.0]
[1672592518065,20.0,9.9134,9.9002,75.83]
[1672592518380,40.0,9.9133,9.9003,40.0]
[1672592518578,40.0,9.9133,9.9005,40.0]
[1672592518901,20.0,9.9132,9.9007,40.0]
[1672592519127,40.0,9.9131,9.9009,40.0]
[1672592519309,20.0,9.913,9.901,75.83]
[1672592519518,20.0,9.913,9.9011,40.0]
[1672592519730,20.0,9.913,9.9013,40.0]
[1672592520051,40.0,9.9129,9.9015,40.0]
[1672592520256,40.0,9.9127,9.9016,75.82]
[1672592520464,40.0,9.9127,9.9017,40.0]
[1672592520673,40.0,9.9127,9.9019,40.0]
[1672592520884,20.0,9.9126,9.902,75.82]
[1672592521094,20.0,9.9126,9.9021,40.0]
[1672592521304,20.0,9.9126,9.9023,40.0]
[1672592521510,20.0,9.9126,9.9025,40.0]
[1672592521726,20.0,9.9126,9.9026,75.82]
[1672592522041,20.0,9.9126,9.9027,40.0]
[1672592522246,20.0,9.9126,9.9029,40.0]
[1672592522489,20.0,9.9126,9.903,75.81]
[1672592522683,20.0,9.9126,9.9028,75.82]
[1672592523004,40.0,9.9124,9.9029,40.0]
[1672592523207,20.0,9.9123,9.9031,40.0]
[1672592523427,20.0,9.9123,9.9032,75.81]
[1672592523618,20.0,9.9123,9.9031,75.81]
[1672592524039,20.0,9.9123,9.9032,23.2746]
[1672592524358,40.0,9.9122,9.9032,23.2746]
[1672592524682,40.0,9.9122,9.9033,23.2746]
[1672592524894,40.0,9.9122,9.9034,75.81]
[1672592525101,40.0,9.9122,9.9034,99.0846]
[1672592525840,40.0,9.9122,9.9035,23.2746]
[1672592526052,40.0,9.9122,9.9036,75.81]
[1672592526478,40.0,9.9122,9.9037,23.2746]
[1672592526685,40.0,9.9122,9.9038,75.81]
[1672592527303,52.17508969,9.9121,9.9038,75.81]
[1672592527532,40.0,9.912,9.9039,24.8272]
[1672592527739,101.4217774,9.912,9.9039,24.8272]
[1672592527951,15.27137972,9.9119,9.9039,24.8272]
[1672592528265,40.0,9.9118,9.9039,24.8272]
[1672592528461,105.42649504,9.9118,9.9039,24.8272]
[1672592528674,65.42649504,9.9117,9.9039,24.8272]
[1672592528881,40.0,9.9116,9.9039,24.8272]
[1672592529096,92.17508969,9.9116,9.9039,24.8272]
[1672592529310,40.0,9.9114,9.9039,24.8272]
[1672592529728,61.4217774,9.9113,9.9039,24.8272]
[1672592530054,40.0,9.9112,9.9039,24.8272]
[1672592530258,303.9,9.911,9.8892,73.64547268]
[1672592530475,303.9,9.9108,9.8958,23.7838]
[1672592530685,40.0,9.9105,9.8959,23.7838]
[1672592530994,40.0,9.9102,9.896,75.87]
[1672592531203,303.9,9.91,9.896,75.87]
[1672592531396,40.0,9.9097,9.896,75.87]
[1672592531608,40.0,9.9094,9.8961,23.7838]
[1672592531820,303.9,9.9092,9.8962,75.87]
[1672592532140,343.9,9.909,9.8962,75.87]
[1672592532349,40.0,9.9087,9.8963,23.7838]
[1672592532553,40.0,9.9084,9.8964,75.86]
[1672592532769,303.9,9.9082,9.8964,75.86]
[1672592532981,40.0,9.9079,9.8965,23.7838]
[1672592533192,40.0,9.9077,9.8966,75.86]
[1672592533397,40.0,9.9075,9.8966,75.86]
[1672592533608,95.78,9.9074,9.8966,75.86]
[1672592533828,40.0,9.9073,9.8966,75.86]
[1672592534041,40.0,9.9071,9.8966,75.86]
[1672592534243,95.78,9.907,9.8966,75.86]
[1672592534572,40.0,9.9069,9.8966,75.86]
[1672592534779,40.0,9.9067,9.8966,75.86]
[1672592535193,20.0,9.9066,9.8966,75.86]
[1672592535406,40.0,9.9065,9.8966,75.86]
[1672592535718,103.63249046,9.9065,9.8966,75.86]
[1672592535929,40.0,9.9063,9.8966,75.86]
[1672592536144,40.0,9.9061,9.8966,75.86]
[1672592536354,20.0,9.906,9.8966,75.86]
[1672592536567,40.0,9.9059,9.8966,75.86]
[1672592536783,40.0,9.9057,9.8966,75.86]
[1672592537183,44.8211,9.9056,9.8966,75.86]
[1672592537398,40.0,9.9055,9.8966,75.86]
[1672592537823,44.8211,9.9054,9.8966,75.86]
[1672592538035,40.0,9.9053,9.8966,75.86]
[1672592538357,40.0,9.9051,9.8966,75.86]
[1672592538568,40.0,9.9049,9.8966,75.86]
[1672592538773,20.0,9.9048,9.8966,75.86]
[1672592539198,40.0,9.9046,9.8966,75.86]
[1672592539398,20.0,9.9045,9.8966,75.86]
[1672592539843,40.0,9.9044,9.8966,75.86]
[1672592540448,40.0,9.9042,9.8966,75.86]
[1672592540662,20.0,9.9041,9.8966,75.86]
[1672592540880,40.0,9.9059,9.8967,20.0]
[1672592541101,116.3934,9.9064,9.8968,75.86]
[1672592541417,40.0,9.9136,9.8969,60.0]
[1672592541628,98.6642,9.9135,9.8971,40.0]
[1672592541822,40.0,9.9134,9.8973,40.0]
[1672592542028,40.0,9.9132,9.8975,40.0]
[1672592542244,95.74,9.9131,9.8976,95.85]
[1672592542449,40.0,9.913,9.8977,40.0]
[1672592542670,40.0,9.9128,9.8979,40.0]
[1672592542881,95.74,9.9127,9.898,95.85]
[1672592543089,40.0,9.9126,9.8981,40.0]
[1672592543299,40.0,9.9124,9.8983,40.0]
[1672592543514,95.74,9.9123,9.8984,75.85]
[1672592543730,40.0,9.9122,9.8985,40.0]
[1672592543934,40.0,9.9122,9.8987,40.0]
[1672592544152,40.0,9.9122,9.8988,75.85]
[1672592544342,40.0,9.912,9.8989,40.0]
[1672592544554,40.0,9.912,9.8991,40.0]
[1672592544759,40.0,9.912,9.8992,75.84]
[1672592545091,40.0,9.912,9.8993,40.0]
[1672592545307,40.0,9.912,9.8995,40.0]
[1672592545516,40.0,9.912,9.8996,75.84]
[1672592545828,40.0,9.912,9.8997,40.0]
[1672592546021,40.0,9.912,9.8998,75.84]
[1672592546236,40.0,9.912,9.8999,40.0]
[1672592546445,40.0,9.912,9.9,75.84]
[1672592546662,40.0,9.9122,9.9,238.163]
[1672592546983,20.0,9.9123,9.9001,40.0]
[1672592547197,23.5756,9.9127,9.9002,75.84]
[1672592547418,20.0,9.9126,9.9003,40.0]
[1672592547596,20.0,9.9126,9.9004,75.83]
[1672592547811,20.0,9.9126,9.9005,40.0]
[1672592548019,23.5756,9.9125,9.9007,40.0]
[1672592548235,20.0,9.9124,9.9009,40.0]
[1672592548439,20.0,9.9124,9.901,75.83]
[1672592548665,20.0,9.9124,9.9011,40.0]
[1672592548885,40.0,9.9123,9.9013,40.0]
[1672592549101,20.0,9.9124,9.9015,40.0]
[1672592549296,23.5756,9.9122,9.9016,75.82]
[1672592549508,23.5756,9.9122,9.9017,40.0]
[1672592549713,23.5756,9.9122,9.9018,75.82]
[1672592549933,23.5756,9.9122,9.9019,40.0]
[1672592550251,23.5756,9.9122,9.9021,40.0]
[1672592550466,23.5756,9.9122,9.9023,40.0]
[1672592550678,23.5756,9.9122,9.9024,75.82]
[1672592550889,23.5756,9.9122,9.9025,40.0]
[1672592551074,23.5756,9.9122,9.9026,75.82]
[1672592551290,23.5756,9.9122,9.9027,40.0]
[1672592551503,23.5756,9.9122,9.9029,40.0]
[1672592551826,23.8121,9.9121,9.9031,40.0]
[1672592552044,23.8121,9.9121,9.9033,40.0]
[1672592552356,23.8121,9.912,9.9035,40.0]
[1672592552670,23.8121,9.912,9.9037,40.0]
[1672592552899,23.8121,9.912,9.9039,40.0]
[1672592553194,23.8121,9.912,9.904,75.81]
[1672592553409,23.6322,9.9119,9.9038,24.4987]
[1672592554141,23.6322,9.9118,9.9039,40.0]
[1672592554885,23.6322,9.9118,9.9038,24.4987]
[1672592556659,115.75,9.9117,9.9038,24.4987]
[1672592556870,239.0364919,9.9117,9.9038,24.4987]
[1672592557075,132.14883202,9.9116,9.9038,24.4987]
[1672592557299,40.0,9.9114,9.9038,24.4987]
[1672592557485,40.0,9.9112,9.9038,24.4987]
[1672592557697,75.75,9.9111,9.9038,24.4987]
[1672592557904,40.0,9.911,9.9038,24.4987]
[1672592558131,40.0,9.9108,9.9038,24.4987]
[1672592558341,75.75,9.9107,9.9038,24.4987]
[1672592558537,40.0,9.9106,9.9038,24.4987]
[1672592558748,40.0,9.9104,9.9038,24.4987]
[1672592558957,40.0,9.9102,9.9038,24.4987]
[1672592559504,40.0,9.91,9.9038,24.4987]
[1672592559816,40.0,9.9098,9.9038,24.4987]
[1672592560262,107.59802305,9.9098,9.9038,24.4987]
[1672592560450,58.66652394,9.9097,9.9038,24.4987]
[1672592560660,40.0,9.9096,9.9038,24.4987]
[1672592560885,107.59802305,9.9096,9.9038,24.4987]
[1672592562353,113.48230808,9.9096,9.9038,24.4987]
[1672592594738,40.0,9.9094,9.9038,24.4987]
[1672592597048,107.59802305,9.9094,9.9038,24.4987]
[1672592598098,113.48230808,9.9094,9.9038,24.4987]
[1672592598514,5.88428503,9.9093,9.9038,24.4987]
[1672592598937,40.0,9.9091,9.9038,24.4987]
[1672592609551,67.59802305,9.9092,9.9038,24.4987]
[1672592611442,40.0,9.9091,9.9038,24.4987]
[1672592615207,107.59802305,9.9091,9.9038,24.4987]
[1672592617642,58.66652394,9.909,9.9038,24.4987]
[1672592617846,40.0,9.9089,9.9038,24.4987]
[1672592618057,107.59802305,9.9089,9.9038,24.4987]
[1672592618254,40.0,9.9087,9.9038,24.4987]
[1672592618591,67.59802305,9.9086,9.9038,24.4987]
[1672592618801,40.0,9.9085,9.9038,24.4987]
[1672592637310,67.59802305,9.9086,9.9038,24.4987]
[1672592637518,23.9361,9.9117,9.9038,24.4987]
[1672592637712,23.8901,9.9116,9.904,40.0]
[1672592637917,23.8901,9.9116,9.9042,40.0]
[1672592638128,23.8901,9.9116,9.9043,75.8]
[1672592638449,23.8901,9.9116,9.9044,40.0]
[1672592638667,23.8901,9.9116,9.9046,40.0]
[1672592638993,23.8901,9.9116,9.9048,40.0]
[1672592639182,23.8901,9.9116,9.9049,75.8]
[1672592639399,23.8901,9.9116,9.9044,40.0]
[1672592639728,23.8901,9.9116,9.9046,40.0]
[1672592640043,23.8901,9.9116,9.9048,40.0]
[1672592640359,23.8901,9.9116,9.9046,40.0]
[1672592640550,23.8901,9.9116,9.9045,75.8]
[1672592640758,23.8901,9.9116,9.9046,40.0]
[1672592641187,23.8901,9.9116,9.9048,40.0]
[1672592641400,23.8901,9.9116,9.9049,75.8]
[1672592641722,23.8901,9.9116,9.905,40.0]
[1672592641913,23.8901,9.9116,9.9052,40.0]
[1672592642123,23.8901,9.9116,9.9054,40.0]
[1672592645799,40.0,9.9115,9.9053,75.8]
[1672592646023,40.0,9.9115,9.9026,100.1112]
[1672592646232,40.0,9.9115,9.9029,40.0]
[1672592646437,40.0,9.9115,9.903,75.81]
[1672592646743,40.0,9.9115,9.9031,40.0]
[1672592646965,40.0,9.9115,9.9032,75.81]
[1672592648650,40.0,9.9115,9.9031,40.0]
[1672592652441,40.0,9.9115,9.903,75.81]
[1672592652442,24.8405,9.9114,9.903,75.81]
[1672592652757,24.8405,9.9114,9.9028,75.82]
[1672592652951,40.0,9.9112,9.9028,75.82]
[1672592653593,24.8405,9.9111,9.9028,75.82]
[1672592654426,24.8405,9.911,9.9028,75.82]
[1672592655052,23.5157,9.9109,9.9028,75.82]
[1672592655694,23.5157,9.9108,9.9027,75.82]
[1672592655908,23.5157,9.9108,9.9028,40.0]
[1672592656106,23.5157,9.9108,9.9029,75.81]
[1672592656318,23.5157,9.9107,9.9027,75.82]
[1672592658015,23.5157,9.9107,9.9028,40.0]
[1672592658234,23.5157,9.9107,9.9029,75.81]
[1672592659173,23.5157,9.9107,9.9027,75.82]
[1672592659370,24.0891,9.9106,9.9027,75.82]
[1672592659801,24.0891,9.9106,9.9028,40.0]
[1672592660008,24.0891,9.9106,9.9029,75.81]
[1672592660219,24.0891,9.9106,9.9027,75.82]
[1672592661471,24.0891,9.9106,9.9028,40.0]
[1672592661700,24.0891,9.9106,9.903,40.0]
[1672592661911,24.0891,9.9106,9.9031,75.81]
[1672592662121,24.0891,9.9106,9.9032,40.0]